Department Family,Entity,Date Paid,Expense Type,Expenses Area,Supplier Name,Transaction Reference,Total,VAT Registration Number,Vlook up 
Department of Health,Imperial College Healthcare NHS Trust,01/08/2019,Agency Admin & Clerical,"Div Of Surg, Cardiov & Cancer",Reed,4029172,56652.2,Optional requirement only,0
Department of Health,Imperial College Healthcare NHS Trust,01/08/2019,Agency Ahps: Qualified,"Div Of Surg, Cardiov & Cancer",Reed,4031570,45450.08,Optional requirement only,0
Department of Health,Imperial College Healthcare NHS Trust,01/08/2019,Agency Ahps: Qualified,Div Of Women & Clin Support,Reed,4031570,47102.99,Optional requirement only,0
Department of Health,Imperial College Healthcare NHS Trust,01/08/2019,Agency Nursing: Qualified,Div Of Med & Integrated Care,Reed,4029172,85584.24,Optional requirement only,0
Department of Health,Imperial College Healthcare NHS Trust,01/08/2019,Agency Nursing: Qualified,Div Of Med & Integrated Care,Reed,4031570,77343.16,Optional requirement only,0
Department of Health,Imperial College Healthcare NHS Trust,01/08/2019,Agency Nursing: Qualified,"Div Of Surg, Cardiov & Cancer",Reed,4029172,63240.23,Optional requirement only,0
Department of Health,Imperial College Healthcare NHS Trust,01/08/2019,Agency Nursing: Qualified,"Div Of Surg, Cardiov & Cancer",Reed,4031570,71993.68,Optional requirement only,0
Department of Health,Imperial College Healthcare NHS Trust,01/08/2019,Agency Scient & Prof Qualified,Pathology,Reed,20937,31431.46,Optional requirement only,0
Department of Health,Imperial College Healthcare NHS Trust,01/08/2019,Computer Software/License,Information & Comms Technology,Patients Know Best Limited,3976313,120450,Optional requirement only,0
Department of Health,Imperial College Healthcare NHS Trust,01/08/2019,Cy Auc -Addns-Bd Purchased,Capital Summary,Axis Elevators Ltd,3989696,31572,Optional requirement only,0
Department of Health,Imperial College Healthcare NHS Trust,01/08/2019,Cy Auc -Addns-Bd Purchased,Capital Summary,Ram Building Consultancy Ltd,4018342,32097,Optional requirement only,0
Department of Health,Imperial College Healthcare NHS Trust,01/08/2019,Dialysers,Div Of Med & Integrated Care,Baxter Healthcare Ltd,4012677,109797.4,Optional requirement only,0
Department of Health,Imperial College Healthcare NHS Trust,01/08/2019,Drugs Nhs,Div Of Med & Integrated Care,London North West Univ Healthcare Nhs Trust,3954025,254892.28,Optional requirement only,0
Department of Health,Imperial College Healthcare NHS Trust,01/08/2019,Ext Contr Logistics,Finance Directorate,Eleanor Hospital Logistics Ltd,4021508,158628.11,Optional requirement only,0
Department of Health,Imperial College Healthcare NHS Trust,01/08/2019,Gas,Estates Directorate,Corona Energy,3997205,30695.93,Optional requirement only,0
Department of Health,Imperial College Healthcare NHS Trust,01/08/2019,Gas,Estates Directorate,Corona Energy,3997223,138211.98,Optional requirement only,0
Department of Health,Imperial College Healthcare NHS Trust,01/08/2019,Gas,Estates Directorate,Corona Energy,3997225,69414.74,Optional requirement only,0
Department of Health,Imperial College Healthcare NHS Trust,01/08/2019,Gas,Estates Directorate,Corona Energy,3997237,42407.9,Optional requirement only,0
Department of Health,Imperial College Healthcare NHS Trust,01/08/2019,Gas,Estates Directorate,Corona Energy,3997242,54375.14,Optional requirement only,0
Department of Health,Imperial College Healthcare NHS Trust,01/08/2019,Gas,Estates Directorate,Corona Energy,4022305,107352.38,Optional requirement only,0
Department of Health,Imperial College Healthcare NHS Trust,01/08/2019,Gas,Estates Directorate,Corona Energy,4022311,47981.36,Optional requirement only,0
Department of Health,Imperial College Healthcare NHS Trust,01/08/2019,Gas,Estates Directorate,Corona Energy,4022312,73395.2,Optional requirement only,0
Department of Health,Imperial College Healthcare NHS Trust,01/08/2019,Jac - Stock,Balance Sheet St Marys,Aah Pharmaceuticals Limited,4027463,161745.6,Optional requirement only,Stock
Department of Health,Imperial College Healthcare NHS Trust,01/08/2019,Jac - Stock,Balance Sheet St Marys,Bayer Plc,4028202,58732.8,Optional requirement only,Stock
Department of Health,Imperial College Healthcare NHS Trust,01/08/2019,Lease Rents,Estates Directorate,London Borough Of Hammersmith/Fulham,4016872,103561.64,Optional requirement only,0
Department of Health,Imperial College Healthcare NHS Trust,01/08/2019,Med & Surg Equip Repair,Div Of Women & Clin Support,Ge Medical Systems Limited,4007521,81489.07,Optional requirement only,0
Department of Health,Imperial College Healthcare NHS Trust,01/08/2019,Other Research Exp - Non-Pay,Rd Medical Directorate,Royal Brompton & Harefield Hospital,4019161,197629,Optional requirement only,0
Department of Health,Imperial College Healthcare NHS Trust,01/08/2019,Purch Hcare Independent Sector,Div Of Med & Integrated Care,London Central & West Unscheduled Care Collab,4031576,452524.25,Optional requirement only,0
Department of Health,Imperial College Healthcare NHS Trust,01/08/2019,Purch Hcare Independent Sector,Div Of Med & Integrated Care,London Central & West Unscheduled Care Collab,4031577,452524.25,Optional requirement only,0
Department of Health,Imperial College Healthcare NHS Trust,01/08/2019,Purch Hcare Independent Sector,Div Of Med & Integrated Care,London Central & West Unscheduled Care Collab,4031578,452524.25,Optional requirement only,0
Department of Health,Imperial College Healthcare NHS Trust,01/08/2019,Purch Hcare Independent Sector,"Div Of Surg, Cardiov & Cancer",Bmi Healthcare Ltd,4021555,61641.76,Optional requirement only,0
Department of Health,Imperial College Healthcare NHS Trust,01/08/2019,Services Received - Nhsts,Div Of Med & Integrated Care,London North West Univ Healthcare Nhs Trust,3963286,168916.75,Optional requirement only,0
Department of Health,Imperial College Healthcare NHS Trust,01/08/2019,Services Received - Nhsts,Div Of Med & Integrated Care,University Hospitals Birmingham Nhs Ft,3961677,36715.5,Optional requirement only,0
Department of Health,Imperial College Healthcare NHS Trust,01/08/2019,Services Received - Nhsts,Div Of Med & Integrated Care,University Hospitals Birmingham Nhs Ft,3961714,45606.75,Optional requirement only,0
Department of Health,Imperial College Healthcare NHS Trust,01/08/2019,Services Received - Nhsts,Div Of Women & Clin Support,Snore Solutions Uk Ltd,4023999,31930,Optional requirement only,0
Department of Health,Imperial College Healthcare NHS Trust,01/08/2019,Supplies Issues Recharges,Ichnt Balance Sheet,Supply Chain Coordination Ltd (Sccl) ( 101),4004336,103616.64,Optional requirement only,Stock
Department of Health,Imperial College Healthcare NHS Trust,01/08/2019,Supplies Issues Recharges,Ichnt Balance Sheet,Supply Chain Coordination Ltd (Sccl) ( 101),4007932,161429.98,Optional requirement only,Stock
Department of Health,Imperial College Healthcare NHS Trust,06/08/2019,Acton Housing Association,Ichnt Balance Sheet,A2dominion Housing Group Ltd,4034895,198184.53,Optional requirement only,Housing Deductions
Department of Health,Imperial College Healthcare NHS Trust,06/08/2019,Computer Software/License,Pathology,Clinisys Solutions Ltd,20250,150657.16,Optional requirement only,0
Department of Health,Imperial College Healthcare NHS Trust,06/08/2019,Computer Software/License,Pathology,Clinisys Solutions Ltd,20251,151482.48,Optional requirement only,0
Department of Health,Imperial College Healthcare NHS Trust,06/08/2019,Contr Other External,Estates Directorate,Cbre Managed Services Ltd,4029060,754548,Optional requirement only,0
Department of Health,Imperial College Healthcare NHS Trust,06/08/2019,Cy Auc -Addns-Bd Purchased,Capital Summary,Amber Group Limited,4024065,92533.38,Optional requirement only,0
Department of Health,Imperial College Healthcare NHS Trust,06/08/2019,Cy Auc -Addns-Bd Purchased,Capital Summary,Cuffe  Plc,4018038,31664.28,Optional requirement only,0
Department of Health,Imperial College Healthcare NHS Trust,06/08/2019,Cy Auc -Addns-Bd Purchased,Capital Summary,Cuffe  Plc,4018042,46488.98,Optional requirement only,0
Department of Health,Imperial College Healthcare NHS Trust,06/08/2019,Cy Auc -Addns-Bd Purchased,Capital Summary,Jackson Lift Services Limited,4003890,31337.86,Optional requirement only,0
Department of Health,Imperial College Healthcare NHS Trust,06/08/2019,Cy Auc -Addns- It Eqpt-Addns,Capital Summary,Infratech Hardware Limited,4022095,58562.4,Optional requirement only,0
Department of Health,Imperial College Healthcare NHS Trust,06/08/2019,Cy Auc -Addns- P & M-Purchased,Capital Summary,Liva Nova Uk Limited,4018086,124177.72,Optional requirement only,0
Department of Health,Imperial College Healthcare NHS Trust,06/08/2019,Cy Auc -Addns- P & M-Purchased,Capital Summary,Liva Nova Uk Limited,4018131,121874.68,Optional requirement only,0
Department of Health,Imperial College Healthcare NHS Trust,06/08/2019,Cy Auc -Addns- P & M-Purchased,Capital Summary,Liva Nova Uk Limited,4018144,121644.28,Optional requirement only,0
Department of Health,Imperial College Healthcare NHS Trust,06/08/2019,Cy Auc -Addns- P & M-Purchased,Capital Summary,Liva Nova Uk Limited,4018154,120071.8,Optional requirement only,0
Department of Health,Imperial College Healthcare NHS Trust,06/08/2019,Fp10s,Div Of Women & Clin Support,Nhs Business Services Authority,4026726,41757.63,Optional requirement only,0
Department of Health,Imperial College Healthcare NHS Trust,06/08/2019,Gas,Estates Directorate,Corona Energy,4025751,79450.54,Optional requirement only,0
Department of Health,Imperial College Healthcare NHS Trust,06/08/2019,Gas,Estates Directorate,Corona Energy,4025760,50938.96,Optional requirement only,0
Department of Health,Imperial College Healthcare NHS Trust,06/08/2019,Interpreting Services,Div Of Women & Clin Support,Oncall Interpreters Ltd [Cw],4024676,30648.85,Optional requirement only,0
Department of Health,Imperial College Healthcare NHS Trust,06/08/2019,Interpreting Services,Div Of Women & Clin Support,Oncall Interpreters Ltd [Cw],4027085,36742.62,Optional requirement only,0
Department of Health,Imperial College Healthcare NHS Trust,06/08/2019,Isotopes,Div Of Women & Clin Support,Curium Pharma Uk Ltd,4012674,32778,Optional requirement only,0
Department of Health,Imperial College Healthcare NHS Trust,06/08/2019,Med & Surg Equip Leases,"Div Of Surg, Cardiov & Cancer",Tp Leasing Ltd,3971820,53670.58,Optional requirement only,0
Department of Health,Imperial College Healthcare NHS Trust,06/08/2019,Med & Surg Equip Leases,"Div Of Surg, Cardiov & Cancer",Tp Leasing Ltd,4019175,53670.58,Optional requirement only,0
Department of Health,Imperial College Healthcare NHS Trust,06/08/2019,Med & Surg Equip Leases,Estates Directorate,Arjo Uk Ltd,4032515,93429.47,Optional requirement only,0
Department of Health,Imperial College Healthcare NHS Trust,06/08/2019,Other Transport Costs,Pathology,Dhl Supply Chain  (Former Excel),21104,104302.7,Optional requirement only,0
Department of Health,Imperial College Healthcare NHS Trust,06/08/2019,Purch Hcare Independent Sector,"Div Of Surg, Cardiov & Cancer",Bmi Healthcare Ltd,4026454,187422.52,Optional requirement only,0
Department of Health,Imperial College Healthcare NHS Trust,08/08/2019,Bldg/Eng Equip Maint/Rep,Estates Directorate,Cbre Managed Services Ltd,4034891,170760.33,Optional requirement only,0
Department of Health,Imperial College Healthcare NHS Trust,08/08/2019,Clinical Managed Service Contr,Pathology,The Hillingdon Hospital Nhs Foundation Trust,20438,504761.04,Optional requirement only,0
Department of Health,Imperial College Healthcare NHS Trust,08/08/2019,Contr Photocopier Rental,Information & Comms Technology,Canon (Uk) Ltd,4017968,222217.87,Optional requirement only,0
Department of Health,Imperial College Healthcare NHS Trust,08/08/2019,Cy Auc -Addns-Bd Purchased,Capital Summary,Alarm Communication Limited,3927672,36000,Optional requirement only,0
Department of Health,Imperial College Healthcare NHS Trust,08/08/2019,Cy Auc -Addns-Bd Purchased,Capital Summary,Cbre Managed Services Ltd,4034891,1037545.76,Optional requirement only,0
Department of Health,Imperial College Healthcare NHS Trust,08/08/2019,Cy Auc -Addns- P & M-Purchased,Capital Summary,Liva Nova Uk Limited,4018161,120071.8,Optional requirement only,0
Department of Health,Imperial College Healthcare NHS Trust,08/08/2019,Cy Auc -Addns- P & M-Purchased,Capital Summary,Nipro Medical Uk Ltd,4024063,347189.5,Optional requirement only,0
Department of Health,Imperial College Healthcare NHS Trust,08/08/2019,Dialysers,Div Of Med & Integrated Care,Baxter Healthcare Ltd,3978961,64499.4,Optional requirement only,0
Department of Health,Imperial College Healthcare NHS Trust,08/08/2019,Dialysers,Div Of Med & Integrated Care,Baxter Healthcare Ltd,3979005,139464.8,Optional requirement only,0
Department of Health,Imperial College Healthcare NHS Trust,08/08/2019,Dialysers,Div Of Med & Integrated Care,Baxter Healthcare Ltd,3997471,137918.59,Optional requirement only,0
Department of Health,Imperial College Healthcare NHS Trust,08/08/2019,Dialysers,Div Of Med & Integrated Care,Baxter Healthcare Ltd,4012605,60533.32,Optional requirement only,0
Department of Health,Imperial College Healthcare NHS Trust,08/08/2019,Dialysers,Div Of Med & Integrated Care,Baxter Healthcare Ltd,4012608,70156.28,Optional requirement only,0
Department of Health,Imperial College Healthcare NHS Trust,08/08/2019,Drugs Pbr Excluded,"Div Of Surg, Cardiov & Cancer",Healthcare At Home Ltd,4022354,30845,Optional requirement only,0
Department of Health,Imperial College Healthcare NHS Trust,08/08/2019,Jac - Stock,Balance Sheet St Marys,Csl Behring Uk Ltd,4020225,30870,Optional requirement only,Stock
Department of Health,Imperial College Healthcare NHS Trust,08/08/2019,Jac - Stock,Balance Sheet St Marys,Csl Behring Uk Ltd,4020226,194040,Optional requirement only,Stock
Department of Health,Imperial College Healthcare NHS Trust,08/08/2019,Jac - Stock,Balance Sheet St Marys,Csl Behring Uk Ltd,4020666,99015,Optional requirement only,Stock
Department of Health,Imperial College Healthcare NHS Trust,08/08/2019,Jac - Stock,Balance Sheet St Marys,Qualasept Ltd,4028129,58176,Optional requirement only,Stock
Department of Health,Imperial College Healthcare NHS Trust,08/08/2019,Laboratory Culture Media,Pathology,Dhl Supply Chain  (Former Excel),20487,37044,Optional requirement only,0
Department of Health,Imperial College Healthcare NHS Trust,08/08/2019,Other Research Exp - Pay,Rd Medical Directorate,Imperial College London,4021626,27596.33,Optional requirement only,0
Department of Health,Imperial College Healthcare NHS Trust,08/08/2019,Other Research Exp - Pay,Rdwomen And Children Division,Imperial College London,4024661,25432.09,Optional requirement only,0
Department of Health,Imperial College Healthcare NHS Trust,08/08/2019,Staff Recruitment Costs,Human Resources,King'S College Hospital Nhs Foundation Trust,4026429,35401.5,Optional requirement only,0
Department of Health,Imperial College Healthcare NHS Trust,13/08/2019,Agency Nursing: Qualified,Div Of Med & Integrated Care,Reed,4038301,71348,Optional requirement only,0
Department of Health,Imperial College Healthcare NHS Trust,13/08/2019,Agency Nursing: Qualified,"Div Of Surg, Cardiov & Cancer",Reed,4038301,56818.47,Optional requirement only,0
Department of Health,Imperial College Healthcare NHS Trust,13/08/2019,Blood Products,Pathology,Nhs Blood And Transplant,20695,59850.56,Optional requirement only,0
Department of Health,Imperial College Healthcare NHS Trust,13/08/2019,Computer Software/License,Information & Comms Technology,Cdw Ltd,4012566,36081.88,Optional requirement only,0
Department of Health,Imperial College Healthcare NHS Trust,13/08/2019,Computer Software/License,Information & Comms Technology,Cerner Ltd,4022626,298777.02,Optional requirement only,0
Department of Health,Imperial College Healthcare NHS Trust,13/08/2019,Computer Software/License,Information & Comms Technology,Patients Know Best Limited,4022509,336450,Optional requirement only,0
Department of Health,Imperial College Healthcare NHS Trust,13/08/2019,Consultancy Fees,"Div Of Surg, Cardiov & Cancer",Acumentice Limited,4018101,176694,Optional requirement only,0
Department of Health,Imperial College Healthcare NHS Trust,13/08/2019,Consultancy Fees,Finance Directorate,Salford Royal Nhs Foundation Trust,3974663,31563,Optional requirement only,0
Department of Health,Imperial College Healthcare NHS Trust,13/08/2019,Consultancy Fees,Finance Directorate,Salford Royal Nhs Foundation Trust,3995219,31563,Optional requirement only,0
Department of Health,Imperial College Healthcare NHS Trust,13/08/2019,Cy Auc -Addns-Bd Purchased,Capital Summary,Cuffe  Plc,4033302,48520.13,Optional requirement only,0
Department of Health,Imperial College Healthcare NHS Trust,13/08/2019,Cy Auc -Addns-Bd Purchased,Capital Summary,Cuffe  Plc,4033303,245625.07,Optional requirement only,0
Department of Health,Imperial College Healthcare NHS Trust,13/08/2019,Cy Auc -Addns-Bd Purchased,Capital Summary,Stryker Uk Ltd,3992854,66204.06,Optional requirement only,0
Department of Health,Imperial College Healthcare NHS Trust,13/08/2019,Cy Auc -Addns- It Eqpt-Addns,Capital Summary,Infratech Hardware Limited,4025181,102600,Optional requirement only,0
Department of Health,Imperial College Healthcare NHS Trust,13/08/2019,Jac - Stock,Balance Sheet St Marys,Alliance Healthcare (Distribution) Ltd,4033843,37385.92,Optional requirement only,Stock
Department of Health,Imperial College Healthcare NHS Trust,13/08/2019,Med & Surg Equip Leases,Div Of Med & Integrated Care,De Lage Landen Leasing Limited,4023387,34236.3,Optional requirement only,0
Department of Health,Imperial College Healthcare NHS Trust,13/08/2019,Med & Surg Maint Contract,Div Of Women & Clin Support,Jac Computer Services Ltd,3937390,53071.2,Optional requirement only,0
Department of Health,Imperial College Healthcare NHS Trust,13/08/2019,Other Transport Costs,Estates Directorate,Falck Uk Ambulance Service Limited,4018109,1445875.1,Optional requirement only,0
Department of Health,Imperial College Healthcare NHS Trust,13/08/2019,Other Transport Costs,Estates Directorate,Falck Uk Ambulance Service Limited,4018118,1445875.1,Optional requirement only,0
Department of Health,Imperial College Healthcare NHS Trust,13/08/2019,Rent,Estates Directorate,Metropolitan Thames Valley,4022161,46178.3,Optional requirement only,0
Department of Health,Imperial College Healthcare NHS Trust,13/08/2019,Supplies Issues Recharges,Ichnt Balance Sheet,Nhs Supply Chain (Consumables 101),3959680,160737.53,Optional requirement only,Stock
Department of Health,Imperial College Healthcare NHS Trust,13/08/2019,Supplies Issues Recharges,Ichnt Balance Sheet,Nhs Supply Chain (Consumables 101),3959685,115439.44,Optional requirement only,Stock
Department of Health,Imperial College Healthcare NHS Trust,13/08/2019,Supplies Issues Recharges,Ichnt Balance Sheet,Nhs Supply Chain (Consumables 101),3964591,160465.03,Optional requirement only,Stock
Department of Health,Imperial College Healthcare NHS Trust,13/08/2019,Supplies Issues Recharges,Ichnt Balance Sheet,Nhs Supply Chain (Consumables 101),3964592,160939.39,Optional requirement only,Stock
Department of Health,Imperial College Healthcare NHS Trust,13/08/2019,Supplies Issues Recharges,Ichnt Balance Sheet,Nhs Supply Chain (Consumables 101),3964593,98284.45,Optional requirement only,Stock
Department of Health,Imperial College Healthcare NHS Trust,13/08/2019,Supplies Issues Recharges,Ichnt Balance Sheet,Supply Chain Coordination Ltd (Sccl) ( 101),4007931,102586.15,Optional requirement only,Stock
Department of Health,Imperial College Healthcare NHS Trust,13/08/2019,Supplies Issues Recharges,Ichnt Balance Sheet,Supply Chain Coordination Ltd (Sccl) ( 101),4007933,136250.71,Optional requirement only,Stock
Department of Health,Imperial College Healthcare NHS Trust,13/08/2019,Supplies Issues Recharges,Ichnt Balance Sheet,Supply Chain Coordination Ltd (Sccl) ( 101),4012611,139315.54,Optional requirement only,Stock
Department of Health,Imperial College Healthcare NHS Trust,13/08/2019,Supplies Issues Recharges,Ichnt Balance Sheet,Supply Chain Coordination Ltd (Sccl) ( 101),4012612,143363.02,Optional requirement only,Stock
Department of Health,Imperial College Healthcare NHS Trust,13/08/2019,Supplies Issues Recharges,Ichnt Balance Sheet,Supply Chain Coordination Ltd (Sccl) ( 101),4018338,163015.26,Optional requirement only,Stock
Department of Health,Imperial College Healthcare NHS Trust,15/08/2019,Agency Ahps: Qualified,"Div Of Surg, Cardiov & Cancer",Reed,4036052,31904.43,Optional requirement only,0
Department of Health,Imperial College Healthcare NHS Trust,15/08/2019,Agency Ahps: Qualified,Div Of Women & Clin Support,Reed,4036052,30433.58,Optional requirement only,0
Department of Health,Imperial College Healthcare NHS Trust,15/08/2019,Agency Nursing: Qualified,Div Of Med & Integrated Care,Reed,4036052,73625.08,Optional requirement only,0
Department of Health,Imperial College Healthcare NHS Trust,15/08/2019,Agency Nursing: Qualified,"Div Of Surg, Cardiov & Cancer",Reed,4036052,67946.27,Optional requirement only,0
Department of Health,Imperial College Healthcare NHS Trust,15/08/2019,Clinical Managed Service Contr,Pathology,The Hillingdon Hospital Nhs Foundation Trust,19879,422048.93,Optional requirement only,0
Department of Health,Imperial College Healthcare NHS Trust,15/08/2019,Clinical Managed Service Contr,Pathology,The Hillingdon Hospital Nhs Foundation Trust,20014,490000.55,Optional requirement only,0
Department of Health,Imperial College Healthcare NHS Trust,15/08/2019,Cx-Hh Consultant Load,Ichnt Balance Sheet,Dr Andrew Wright,4038638,67490.5,Optional requirement only,0
Department of Health,Imperial College Healthcare NHS Trust,15/08/2019,Cx-Hh Consultant Load,Ichnt Balance Sheet,Dr Aristeidis Chaidos,4038707,35587,Optional requirement only,0
Department of Health,Imperial College Healthcare NHS Trust,15/08/2019,Cy Auc -Addns-Bd Purchased,Capital Summary,Cuffe  Plc,4000529,126529.38,Optional requirement only,0
Department of Health,Imperial College Healthcare NHS Trust,15/08/2019,Cy Auc -Addns-Bd Purchased,Capital Summary,Jackson Lift Services Limited,4025890,104730,Optional requirement only,0
Department of Health,Imperial College Healthcare NHS Trust,15/08/2019,Dist Award - Local Cea,Div Of Med & Integrated Care,Imperial College London,4040494,28050.76,Optional requirement only,0
Department of Health,Imperial College Healthcare NHS Trust,15/08/2019,Dist Award - Nat Cea,Div Of Med & Integrated Care,Imperial College London,4040494,101090.92,Optional requirement only,0
Department of Health,Imperial College Healthcare NHS Trust,15/08/2019,Dist Award - Nat Cea,"Div Of Surg, Cardiov & Cancer",Imperial College London,4040494,78375.95,Optional requirement only,0
Department of Health,Imperial College Healthcare NHS Trust,15/08/2019,Dist Award - Nat Cea,Div Of Women & Clin Support,Imperial College London,4040494,37383.85,Optional requirement only,0
Department of Health,Imperial College Healthcare NHS Trust,15/08/2019,Dist Award - Nat Cea,Medical Director Summary,Imperial College London,4040494,27764.75,Optional requirement only,0
Department of Health,Imperial College Healthcare NHS Trust,15/08/2019,Ext Contr Catering,Div Of Med & Integrated Care,Sodexo Limited,4039364,45666.48,Optional requirement only,0
Department of Health,Imperial College Healthcare NHS Trust,15/08/2019,Ext Contr Catering,Div Of Med & Integrated Care,Sodexo Limited,4039371,30633.51,Optional requirement only,0
Department of Health,Imperial College Healthcare NHS Trust,15/08/2019,Ic Pay Recharge In: Med,Div Of Med & Integrated Care,Imperial College London,4040494,205238.85,Optional requirement only,0
Department of Health,Imperial College Healthcare NHS Trust,15/08/2019,Ic Pay Recharge In: Med,"Div Of Surg, Cardiov & Cancer",Imperial College London,4040494,336012.52,Optional requirement only,0
Department of Health,Imperial College Healthcare NHS Trust,15/08/2019,Ic Pay Recharge In: Med,"Div Of Surg, Cardiov & Cancer",Imperial College London,4040495,36772.96,Optional requirement only,0
Department of Health,Imperial College Healthcare NHS Trust,15/08/2019,Ic Pay Recharge In: Med,Div Of Women & Clin Support,Imperial College London,4040494,81655.39,Optional requirement only,0
Department of Health,Imperial College Healthcare NHS Trust,15/08/2019,Ic Pay Recharge In: Med,Pathology,Imperial College London,21507,33363.45,Optional requirement only,0
Department of Health,Imperial College Healthcare NHS Trust,15/08/2019,Jac - Stock,Balance Sheet St Marys,Qualasept Ltd,4032785,414936,Optional requirement only,Stock
Department of Health,Imperial College Healthcare NHS Trust,15/08/2019,Med & Prof Fees (Imaging Cons),Ichnt Balance Sheet,Lindo Wing Radiology Llp,4038694,149266.5,Optional requirement only,0
Department of Health,Imperial College Healthcare NHS Trust,15/08/2019,Miscellaneous Expenditure,Human Resources,National Westminster Bank Plc,4039579,25000,Optional requirement only,0
Department of Health,Imperial College Healthcare NHS Trust,15/08/2019,Miscellaneous Expenditure,Human Resources,National Westminster Bank Plc,4039581,25000,Optional requirement only,0
Department of Health,Imperial College Healthcare NHS Trust,15/08/2019,Other Research Exp - Non-Pay,Rd Medical Directorate,Central & North West London Nhs Ft,4024642,76656,Optional requirement only,0
Department of Health,Imperial College Healthcare NHS Trust,15/08/2019,Other Transport Costs,Estates Directorate,Falck Uk Ambulance Service Limited,4036277,1445875.1,Optional requirement only,0
Department of Health,Imperial College Healthcare NHS Trust,15/08/2019,Purch Hcare Independent Sector,Div Of Med & Integrated Care,London Central & West Unscheduled Care Collab,4039827,452524.25,Optional requirement only,0
Department of Health,Imperial College Healthcare NHS Trust,15/08/2019,Services Received - Nhsts,Medical Director Summary,Great Ormond Street Hosp For Children Nhs Ft,4004273,35845,Optional requirement only,0
Department of Health,Imperial College Healthcare NHS Trust,15/08/2019,Supplies Issues Recharges,Ichnt Balance Sheet,Supply Chain Coordination Ltd (Sccl) ( 101),4004338,136830.08,Optional requirement only,Stock
Department of Health,Imperial College Healthcare NHS Trust,15/08/2019,Supplies Issues Recharges,Ichnt Balance Sheet,Supply Chain Coordination Ltd (Sccl) ( 101),4004339,134193.54,Optional requirement only,Stock
Department of Health,Imperial College Healthcare NHS Trust,15/08/2019,Supplies Issues Recharges,Ichnt Balance Sheet,Supply Chain Coordination Ltd (Sccl) ( 101),4022454,118151.04,Optional requirement only,Stock
Department of Health,Imperial College Healthcare NHS Trust,15/08/2019,Supplies Issues Recharges,Ichnt Balance Sheet,Supply Chain Coordination Ltd (Sccl) ( 101),4022455,188465.67,Optional requirement only,Stock
Department of Health,Imperial College Healthcare NHS Trust,15/08/2019,Supplies Issues Recharges,Ichnt Balance Sheet,Supply Chain Coordination Ltd (Sccl) ( 101),4022456,153012.34,Optional requirement only,Stock
Department of Health,Imperial College Healthcare NHS Trust,15/08/2019,Supplies Issues Recharges,Ichnt Balance Sheet,Supply Chain Coordination Ltd (Sccl) ( 101),4026207,153276.67,Optional requirement only,Stock
Department of Health,Imperial College Healthcare NHS Trust,15/08/2019,Supplies Issues Recharges,Ichnt Balance Sheet,Supply Chain Coordination Ltd (Sccl) ( 101),4026208,157788.23,Optional requirement only,Stock
Department of Health,Imperial College Healthcare NHS Trust,15/08/2019,Supplies Issues Recharges,Ichnt Balance Sheet,Supply Chain Coordination Ltd (Sccl) ( 101),4026209,117423.47,Optional requirement only,Stock
Department of Health,Imperial College Healthcare NHS Trust,15/08/2019,Other Transport Costs,Estates Directorate,Falck Uk Ambulance Service Limited,4040675,1445875.1,Optional requirement only,0
Department of Health,Imperial College Healthcare NHS Trust,16/08/2019,Childcare Voucher (Kids Unltd),Ichnt Balance Sheet,Sodexo Motivation Solutions Uk Ltd,4032537,51469.97,Optional requirement only,Childcare Vouchers
Department of Health,Imperial College Healthcare NHS Trust,16/08/2019,Rates,Estates Directorate,City Of Westminster,4040630,230577,Optional requirement only,0
Department of Health,Imperial College Healthcare NHS Trust,20/08/2019,Blood Products,Pathology,Nhs Blood And Transplant,17444,157154.82,Optional requirement only,0
Department of Health,Imperial College Healthcare NHS Trust,20/08/2019,Blood Products,Pathology,Nhs Blood And Transplant,18071,157154.82,Optional requirement only,0
Department of Health,Imperial College Healthcare NHS Trust,20/08/2019,Blood Products,Pathology,Nhs Blood And Transplant,19422,335758.99,Optional requirement only,0
Department of Health,Imperial College Healthcare NHS Trust,20/08/2019,Blood Products,Pathology,Nhs Blood And Transplant,19424,157154.82,Optional requirement only,0
Department of Health,Imperial College Healthcare NHS Trust,20/08/2019,Blood Products,Pathology,Nhs Blood And Transplant,20692,157154.82,Optional requirement only,0
Department of Health,Imperial College Healthcare NHS Trust,20/08/2019,Blood Products,Pathology,Nhs Blood And Transplant,20698,335758.99,Optional requirement only,0
Department of Health,Imperial College Healthcare NHS Trust,20/08/2019,Cy Auc -Addns-Bd Purchased,Capital Summary,Construction & Shopfitting Ltd T/A C & S Ltd,4037181,286334.68,Optional requirement only,0
Department of Health,Imperial College Healthcare NHS Trust,20/08/2019,Electricity,Estates Directorate,Edf Energy Customer Plc,4033312,103467.4,Optional requirement only,0
Department of Health,Imperial College Healthcare NHS Trust,20/08/2019,Electricity,Estates Directorate,Edf Energy Customer Plc,4033313,37722.7,Optional requirement only,0
Department of Health,Imperial College Healthcare NHS Trust,20/08/2019,Electricity,Estates Directorate,Edf Energy Customer Plc,4033314,289075.84,Optional requirement only,0
Department of Health,Imperial College Healthcare NHS Trust,20/08/2019,Electricity,Estates Directorate,Edf Energy Customer Plc,4033315,307986.62,Optional requirement only,0
Department of Health,Imperial College Healthcare NHS Trust,20/08/2019,Electricity,Estates Directorate,Edf Energy Customer Plc,4033325,39339.23,Optional requirement only,0
Department of Health,Imperial College Healthcare NHS Trust,20/08/2019,Ext Contr Catering,Div Of Med & Integrated Care,Sodexo Limited,4041869,45666.48,Optional requirement only,0
Department of Health,Imperial College Healthcare NHS Trust,20/08/2019,Ext Contr Domestics,Div Of Med & Integrated Care,Sodexo Limited,4041869,32612.12,Optional requirement only,0
Department of Health,Imperial College Healthcare NHS Trust,20/08/2019,Income Tax Paye,Ichnt Balance Sheet,Hmrc Government Employers Account,4043415,15800781.84,Optional requirement only,0
Department of Health,Imperial College Healthcare NHS Trust,20/08/2019,Jac - Stock,Balance Sheet St Marys,Bayer Plc,4036705,80233.2,Optional requirement only,Stock
Department of Health,Imperial College Healthcare NHS Trust,20/08/2019,Jac - Stock,Balance Sheet St Marys,Roche Products Ltd,4032834,105300,Optional requirement only,Stock
Department of Health,Imperial College Healthcare NHS Trust,20/08/2019,Med & Surg Equip General,Div Of Women & Clin Support,Alliance Medical Radiopharmacy Limited,4026711,65400,Optional requirement only,0
Department of Health,Imperial College Healthcare NHS Trust,20/08/2019,Med & Surg Equip Leases,"Div Of Surg, Cardiov & Cancer",Intuitive Surgical Ltd,4026407,45306.79,Optional requirement only,0
Department of Health,Imperial College Healthcare NHS Trust,20/08/2019,Postage & Carriage,Div Of Women & Clin Support,Xerox (Uk) Ltd,4036237,39410.9,Optional requirement only,0
Department of Health,Imperial College Healthcare NHS Trust,22/08/2019,Agency Admin & Clerical,"Div Of Surg, Cardiov & Cancer",Reed,4044028,53176.72,Optional requirement only,0
Department of Health,Imperial College Healthcare NHS Trust,22/08/2019,Agency Ahps: Qualified,Div Of Women & Clin Support,Reed,4044028,41183.93,Optional requirement only,0
Department of Health,Imperial College Healthcare NHS Trust,22/08/2019,Agency Nursing: Qualified,Div Of Med & Integrated Care,Reed,4044028,61848.47,Optional requirement only,0
Department of Health,Imperial College Healthcare NHS Trust,22/08/2019,Agency Nursing: Qualified,"Div Of Surg, Cardiov & Cancer",Reed,4044028,54788.67,Optional requirement only,0
Department of Health,Imperial College Healthcare NHS Trust,22/08/2019,Contr Other External,Div Of Women & Clin Support,Royal Brompton And Harefield Nhs Ft,4042035,26503.19,Optional requirement only,0
Department of Health,Imperial College Healthcare NHS Trust,22/08/2019,Cy Auc -Addns-Bd Purchased,Capital Summary,Willmott Dixon Construction,4017737,238263.6,Optional requirement only,0
Department of Health,Imperial College Healthcare NHS Trust,22/08/2019,Cy Auc -Addns- It Eqpt-Addns,Capital Summary,Sdx Services Ltd,4023836,107906.3,Optional requirement only,0
Department of Health,Imperial College Healthcare NHS Trust,22/08/2019,Cy Auc -Addns- It Eqpt-Addns,Capital Summary,Sdx Services Ltd,4023837,71092.08,Optional requirement only,0
Department of Health,Imperial College Healthcare NHS Trust,22/08/2019,Cy Auc -Addns- P & M-Purchased,Capital Summary,Liva Nova Uk Limited,4029842,37310.4,Optional requirement only,0
Department of Health,Imperial College Healthcare NHS Trust,22/08/2019,Dialysers,Div Of Med & Integrated Care,Baxter Healthcare Ltd,4039955,139464.8,Optional requirement only,0
Department of Health,Imperial College Healthcare NHS Trust,22/08/2019,Ext Contract Portering,Estates Directorate,Sodexo Limited,4029056,429398.89,Optional requirement only,0
Department of Health,Imperial College Healthcare NHS Trust,22/08/2019,Ext Contr Catering,Estates Directorate,Sodexo Limited,4029056,587876.93,Optional requirement only,0
Department of Health,Imperial College Healthcare NHS Trust,22/08/2019,Ext Contr Domestics,Estates Directorate,Sodexo Limited,4029056,1143566.77,Optional requirement only,0
Department of Health,Imperial College Healthcare NHS Trust,22/08/2019,Ext Contr Oth Hotel Srv,Estates Directorate,Sodexo Limited,4029056,85022.62,Optional requirement only,0
Department of Health,Imperial College Healthcare NHS Trust,22/08/2019,Insurance Costs,Estates Directorate,Hsb Haughton,4029697,58607.71,Optional requirement only,0
Department of Health,Imperial College Healthcare NHS Trust,22/08/2019,Jac - Stock,Balance Sheet St Marys,Genzyme Therapeutics Ltd,4035037,152172,Optional requirement only,Stock
Department of Health,Imperial College Healthcare NHS Trust,22/08/2019,Jac - Stock,Balance Sheet St Marys,Genzyme Therapeutics Ltd,4035038,160626,Optional requirement only,Stock
Department of Health,Imperial College Healthcare NHS Trust,22/08/2019,Jac - Stock,Balance Sheet St Marys,Janssen-Cilag Ltd,4028520,53913.6,Optional requirement only,Stock
Department of Health,Imperial College Healthcare NHS Trust,22/08/2019,Jac - Stock,Balance Sheet St Marys,Jazz Pharmaceuticals Uk Limited [Ph],4036161,43362,Optional requirement only,Stock
Department of Health,Imperial College Healthcare NHS Trust,22/08/2019,Jac - Stock,Balance Sheet St Marys,Roche Products Ltd,4033837,39000,Optional requirement only,Stock
Department of Health,Imperial College Healthcare NHS Trust,22/08/2019,Med & Surg Equip General,Div Of Women & Clin Support,Lloyds Retail Chemists Ltd,4025969,2808042.42,Optional requirement only,0
Department of Health,Imperial College Healthcare NHS Trust,22/08/2019,Phone Rental And Calls,Information & Comms Technology,Virgin Media Business  Ltd,4023762,52704.84,Optional requirement only,0
Department of Health,Imperial College Healthcare NHS Trust,22/08/2019,Supplies Issues Recharges,Ichnt Balance Sheet,Supply Chain Coordination Ltd (Sccl) ( 101),4030458,107852.98,Optional requirement only,Stock
Department of Health,Imperial College Healthcare NHS Trust,22/08/2019,Thames Valley Housing Assoc,Ichnt Balance Sheet,Metropolitan Thames Valley,4034896,115053.53,Optional requirement only,Housing Deductions
Department of Health,Imperial College Healthcare NHS Trust,27/08/2019,Building Contracts,Pathology,Amber Group Limited,20959,81238.9,Optional requirement only,0
Department of Health,Imperial College Healthcare NHS Trust,27/08/2019,Building Contracts,Pathology,Amber Group Limited,21825,126669.1,Optional requirement only,0
Department of Health,Imperial College Healthcare NHS Trust,27/08/2019,Cleaning Materials,Estates Directorate,Synergy Health Managed Services Ltd,4046286,44157.97,Optional requirement only,0
Department of Health,Imperial College Healthcare NHS Trust,27/08/2019,Computer Software/License,Medical Director Summary,Premier It Ltd,4034682,69639.6,Optional requirement only,0
Department of Health,Imperial College Healthcare NHS Trust,27/08/2019,Cy Auc -Addns-Bd Purchased,Capital Summary,Amber Group Limited,4033426,45233.9,Optional requirement only,0
Department of Health,Imperial College Healthcare NHS Trust,27/08/2019,Cy Auc -Addns-Bd Purchased,Capital Summary,Construction & Shopfitting Ltd T/A C & S Ltd,4034131,301553.6,Optional requirement only,0
Department of Health,Imperial College Healthcare NHS Trust,27/08/2019,Electricity,Estates Directorate,Edf Energy Customer Plc,4036210,42389.59,Optional requirement only,0
Department of Health,Imperial College Healthcare NHS Trust,27/08/2019,Electricity,Estates Directorate,Edf Energy Customer Plc,4036211,345942.17,Optional requirement only,0
Department of Health,Imperial College Healthcare NHS Trust,27/08/2019,Electricity,Estates Directorate,Edf Energy Customer Plc,4036213,332145.12,Optional requirement only,0
Department of Health,Imperial College Healthcare NHS Trust,27/08/2019,Electricity,Estates Directorate,Edf Energy Customer Plc,4036222,104686.8,Optional requirement only,0
Department of Health,Imperial College Healthcare NHS Trust,27/08/2019,Electricity,Estates Directorate,Edf Energy Customer Plc,4036223,127104.13,Optional requirement only,0
Department of Health,Imperial College Healthcare NHS Trust,27/08/2019,Ext Contr Catering,Private Patients Directorate,Sodexo Limited,4033343,157390.69,Optional requirement only,0
Department of Health,Imperial College Healthcare NHS Trust,27/08/2019,Ext Contr Laundry,Estates Directorate,Synergy Health Managed Services Ltd,4046287,47711.79,Optional requirement only,0
Department of Health,Imperial College Healthcare NHS Trust,27/08/2019,Ext Contr Laundry,Estates Directorate,Synergy Health Managed Services Ltd,4046288,56651.81,Optional requirement only,0
Department of Health,Imperial College Healthcare NHS Trust,27/08/2019,Ext Contr Logistics,Finance Directorate,Eleanor Hospital Logistics Ltd,4037312,158628.11,Optional requirement only,0
Department of Health,Imperial College Healthcare NHS Trust,27/08/2019,Jac - Stock,Balance Sheet St Marys,Alexion Pharma Uk Ltd,4035065,30240,Optional requirement only,Stock
Department of Health,Imperial College Healthcare NHS Trust,27/08/2019,Jac - Stock,Balance Sheet St Marys,Bayer Plc,4031461,33037.2,Optional requirement only,Stock
Department of Health,Imperial College Healthcare NHS Trust,27/08/2019,Jac - Stock,Balance Sheet St Marys,Bayer Plc,4039379,46147.2,Optional requirement only,Stock
Department of Health,Imperial College Healthcare NHS Trust,27/08/2019,Jac - Stock,Balance Sheet St Marys,Janssen-Cilag Ltd,4039395,71884.8,Optional requirement only,Stock
Department of Health,Imperial College Healthcare NHS Trust,27/08/2019,Jac - Stock,Balance Sheet St Marys,Roche Products Ltd,4033826,59120.12,Optional requirement only,Stock
Department of Health,Imperial College Healthcare NHS Trust,27/08/2019,Laboratory Test Kits,Pathology,Tosoh Bioscience,21002,30912,Optional requirement only,0
Department of Health,Imperial College Healthcare NHS Trust,27/08/2019,Med & Surg Equip Leases,Estates Directorate,Arjo Uk Ltd,4034177,93429.47,Optional requirement only,0
Department of Health,Imperial College Healthcare NHS Trust,27/08/2019,Med & Surg Maint Contract,"Div Of Surg, Cardiov & Cancer",Karl Storz Endoscopy (Uk) Ltd,4025388,38332.8,Optional requirement only,0
Department of Health,Imperial College Healthcare NHS Trust,27/08/2019,Office Equipment,Pathology,Freedom Of Speech Ltd,21020,32718,Optional requirement only,0
Department of Health,Imperial College Healthcare NHS Trust,27/08/2019,Office Equipment,Pathology,Freedom Of Speech Ltd,21021,32718,Optional requirement only,0
Department of Health,Imperial College Healthcare NHS Trust,27/08/2019,Other Research Exp - Non-Pay,Rd Medical Directorate,London North West Univ Healthcare Nhs Trust,4019480,387620,Optional requirement only,0
Department of Health,Imperial College Healthcare NHS Trust,27/08/2019,Other Transport Costs,Estates Directorate,Falck Uk Ambulance Service Limited,4037884,1445875.1,Optional requirement only,0
Department of Health,Imperial College Healthcare NHS Trust,27/08/2019,Postage & Carriage,Div Of Women & Clin Support,Xerox (Uk) Ltd,4032442,50932.87,Optional requirement only,0
Department of Health,Imperial College Healthcare NHS Trust,27/08/2019,Purch Hcare Independent Sector,"Div Of Surg, Cardiov & Cancer",Parkside Hospital,4031573,32375.71,Optional requirement only,0
Department of Health,Imperial College Healthcare NHS Trust,27/08/2019,Rent,Estates Directorate,Metropolitan Thames Valley,4040896,46178.3,Optional requirement only,0
Department of Health,Imperial College Healthcare NHS Trust,27/08/2019,Services Received - Nhsts,Div Of Women & Clin Support,Snore Solutions Uk Ltd,4034914,31930,Optional requirement only,0
Department of Health,Imperial College Healthcare NHS Trust,27/08/2019,Transcription Services,Div Of Med & Integrated Care,Dictate It Ltd,4043017,38581.54,Optional requirement only,0
Department of Health,Imperial College Healthcare NHS Trust,43704,Transcription Services,"Div Of Surg, Cardiov & Cancer",Dictate It Ltd,4043015,41128,Optional requirement only,0
,,,,,,Sum:,54379638.91,,
,,,,,Count:,205,,,
